Cogmind - Beta 13 X3 @@@ ROGUE MODE // 2024.02.18 @ 12:50:17 Player: Jezoensis Result: Destroyed by D-53 Grenadier with Mini Grenade Launcher Performance ------------- Evolutions (1) 500 Regions Visited (4) 800 Robots Destroyed (63) 315 Value Destroyed (1412) 1412 Prototype IDs (6) 120 Alien Tech Used (0) 0 Bonus (15) 15 TOTAL SCORE: 3162 Bonus ------- High Alert Combat Kills 15 Cogmind --------- Core Integrity 0/400 Matter 59/300 Energy 67/100 System Corruption 3% Temperature Cool (0) Movement Rolling (115) Ox1 Location -9/Mines Parts ------- > --- POWER (1) -------- (None) > --- PROPULSION (3) --- Compact Wheel > --- UTILITY (3) ------ Large Storage Unit > --- WEAPON (2) ------- Shock Rifle Enhanced Autogun > --- INVENTORY (15) --- Improved Heat Sink High-capacity Matter Pod (92) Visual Processing Unit Sensor Array Sensor Array Sensor Array Signal Interpreter Improved Terrain Scanner Shock Rifle Shock Rifle Mining Laser Peak State ------------ > --- POWER ------------ Ion Engine > --- PROPULSION ------- Light Treads Wheel Compact Wheel > --- UTILITY ---------- Improved Heat Sink Large Storage Unit Improved Terrain Scanner > --- WEAPON ----------- Beam Rifle Enhanced Autogun > --- INVENTORY -------- Medium Storage Unit Visual Processing Unit Sensor Array Seismic Detector Light Armor Plating Shock Rifle Shock Rifle Shock Rifle Shock Rifle Heavy Assault Rifle Enhanced Autogun Enhanced Autogun Rocket Launcher Rocket Launcher Mining Laser [Rating: 20] Favorites ----------- Power Ion Engine Engine Ion Engine Propulsion Wheel Treads Light Treads Leg Aluminum Leg Wheel Wheel Utility Improved Terrain Scanner Device Improved Terrain Scanner Storage Large Storage Unit Protection Light Armor Plating Weapon Enhanced Autogun Energy Gun Beam Rifle Ballistic Gun Enhanced Autogun Launcher Rocket Launcher Special Weapon Mining Laser Build | -11 -10 -10 -9 -9 ------- Run | Yrd Mat Min Mat Min Slots Evolved 2 | . . . 2 . Power . | . . . . . Propulsion 1 | . . . 1 . Utility 1 | . . . 1 . Weapon . | . . . . . Parts Attached 93 | 9 13 . 52 19 Power 7 | 1 1 . 3 2 Engine 7 | 1 1 . 3 2 Core . | . . . . . Reactor . | . . . . . Propulsion 19 | 3 4 . 8 4 Treads 6 | . 2 . 4 . Leg 1 | . . . 1 . Wheel 12 | 3 2 . 3 4 Hover . | . . . . . Flight . | . . . . . Utility 36 | 2 3 . 27 4 Device 27 | 1 2 . 20 4 Storage 3 | 1 1 . 1 . Processor . | . . . . . Hackware . | . . . . . Protection 6 | . . . 6 . Artifact . | . . . . . Weapon 31 | 3 5 . 14 9 Energy Gun 10 | 1 2 . 5 2 Energy Cannon . | . . . . . Ballistic Gun 14 | 2 2 . 6 4 Ballistic Cannon . | . . . . . Launcher 6 | . . . 3 3 Special Weapon 1 | . 1 . . . Impact Weapon . | . . . . . Slashing Weapon . | . . . . . Piercing Weapon . | . . . . . Special Melee Weapon . | . . . . . Unidentified Prototypes 1 | . . . 1 . Parts Lost 17 | . . . 6 11 Power 3 | . . . 1 2 Propulsion 7 | . . . 3 4 Utility 3 | . . . 2 1 Weapon 4 | . . . . 4 Highest Loss Streak 9 | . . . 4 9 To Critical Strikes . | . . . . . Average Slot Usage (%) 97 | . 100 100 97 94 Engine 10 | . 14 14 9 10 Treads 9 | . 2 . 11 10 Wheel 21 | . 25 28 19 19 Device 17 | . 14 14 17 20 Storage 11 | . 14 14 11 11 Protection 2 | . . . 4 . Energy Gun 11 | . 19 28 11 3 Ballistic Gun 10 | . 6 . 9 15 Naked Turns . | . . . . . Heaviest Build 37 | 13 22 22 37 36 Greatest Support 26 | 20 20 20 26 26 Greatest Overweight (x) 2 | . 1 1 2 2 Average Overweight (x) . | . . 1 . 1 Largest Inventory Capacity 15 | 8 10 10 15 15 Average Capacity 12 | 6 8 10 12 15 Most Carried 15 | 7 8 8 15 15 Average Carried 11 | 3 7 8 12 14 Final Capacity 15 | 8 10 10 15 15 Final Carried 15 | 7 8 8 15 11 Class Distribution -------------------- 69% | Scavenger-Mutant 30% | Mutant Dominant Class ---------------- Mutant | -10/Materials Mutant | -10/Mines Scavenger-Mutant | -9/Materials Scavenger-Mutant | -9/Mines Resources | -11 -10 -10 -9 -9 ----------- Run | Yrd Mat Min Mat Min Matter Collected 1712 | 308 168 . 767 469 Remotely . | . . . . . Salvage Created 1864 | 91 324 . 1035 414 Parts 138 | 11 14 . 90 23 Haulers Intercepted 2 | . 2 . . . Recyclers Shooed 2 | . . . 1 1 Parts Field Recycled . | . . . . . Retrieved Matter . | . . . . . Parts Self-Destructed . | . . . . . Prevented . | . . . . . Kills | -11 -10 -10 -9 -9 ------- Run | Yrd Mat Min Mat Min Combat Hostiles Destroyed 61 | . 6 . 27 28 Guns 32 | . 5 . 18 9 AOE 28 | . . . 9 19 Classes Destroyed 11 | 1 2 . 6 2 Worker 4 | . . . 2 2 Tunneler 6 | 4 . . 1 1 Hauler 2 | . 2 . . . Recycler 2 | . . . 1 1 Watcher 4 | . . . 4 . Swarmer 17 | . . . 10 7 Grunt 19 | . 6 . 9 4 Brawler 1 | . . . 1 . Duelist 1 | . . . . 1 Sentry 7 | . . . 7 . Assembled 16 | . . . . 16 Best Kill Streak 19 | 4 5 . 4 19 Combat Bots Only 19 | . 4 . 4 19 Max Kills in Single Turn 4 | 1 2 . 4 4 Gunslinging 1 | . 1 . 1 . Exploded 4 | . . . 4 4 Melee . | . . . . . Uniques/NPCs Destroyed . | . . . . . Combat | -11 -10 -10 -9 -9 -------- Run | Yrd Mat Min Mat Min Hostile Shots Fired 224 | . 32 . 104 88 Missed 62 | . 10 . 31 21 Damage Taken 2410 | . 297 . 898 1215 Core 439 | . 36 . 102 301 Absorbed by Shields . | . . . . . Core Remaining (%) 92 | 100 . 85 . . Volleys Fired 169 | 6 35 . 70 58 Largest 2 | 2 2 . 2 2 Hottest 130 | 70 130 . 130 81 Shots Fired 308 | 12 61 . 134 101 Gun 279 | 12 56 . 127 84 Cannon . | . . . . . Launcher 24 | . . . 7 17 Special 5 | . 5 . . . Kinetic 148 | 6 17 . 56 69 Thermal 136 | 6 44 . 71 15 Explosive 24 | . . . 7 17 Electromagnetic . | . . . . . Robot Hit Streak 18 | 5 10 . 18 7 Robot Miss Streak 8 | 1 3 . 5 8 Penetration Max . | . . . . . Secondary Targets 4 | . 2 . 1 1 Max Gunslinging Chain 1 | . 1 . 1 1 Shots Hit Robots 188 | 8 44 . 87 49 Core Hits 119 | 4 14 . 48 53 Critical Kills . | . . . . . Critical Parts Destroyed . | . . . . . Critical Strikes 8 | . 2 . 4 2 Burn 8 | . 2 . 4 2 Melee Attacks . | . . . . . Impact . | . . . . . Slashing . | . . . . . Piercing . | . . . . . Sneak Attacks . | . . . . . Combat Hostiles . | . . . . . Follow-up Attacks . | . . . . . Damage Inflicted 4899 | 98 627 . 1996 2178 Guns 2811 | 98 627 . 1330 756 Cannons . | . . . . . Explosions 2088 | . . . 666 1422 Melee . | . . . . . Ramming . | . . . . . Kinetic 1410 | 60 137 . 621 592 Thermal 1401 | 38 490 . 709 164 Explosive 2088 | . . . 666 1422 Electromagnetic . | . . . . . Impact . | . . . . . Slashing . | . . . . . Piercing . | . . . . . Highest Corruption 3 | . 1 1 . 3 Average Corruption 1 | . 1 1 . 3 Corruption Purged . | . . . . . Corruption Blocked . | . . . . . Effects 2 | . . 1 . 1 Matter Fused 1 | . . 1 . . Weapon Failures 1 | . . . . 1 Overload Shots . | . . . . . Overflow Damage 17 | . . . . 17 Projectiles . | . . . . . Explosions 17 | . . . . 17 Melee . | . . . . . Knockbacks . | . . . . . Impact . | . . . . . Kinetic . | . . . . . Secondary . | . . . . . Self-Inflicted Damage 31 | . . . . 31 Shots 2 | . . . . 2 Rammed . | . . . . . Targets Rammed . | . . . . . Kicked . | . . . . . Crushed . | . . . . . Highest Temperature 290 | 27 290 . 198 50 Average Temperature 66 | 11 124 . 40 15 Received Heat Transfer 602 | . 201 . 264 137 Effects 3 | . 3 . . . Interference 3 | . 3 . . . Siege Activations . | . . . . . Robots Corrupted . | . . . . . Combat Hostiles . | . . . . . Parts Fried . | . . . . . Impact Corruptions . | . . . . . Robots Melted 1 | . 1 . . . Combat Hostiles 1 | . 1 . . . Parts Melted 3 | . . . 3 . Heat Transferred 4033 | 111 1332 . 2035 555 Parts Sabotaged . | . . . . . Parts Stolen . | . . . . . Parts Stripped . | . . . . . Power Chain Reactions . | . . . . . Alert | -11 -10 -10 -9 -9 ------- Run | Yrd Mat Min Mat Min Peak Influence 460 | 20 191 74 433 460 Initial 94 | . 13 74 28 94 Average 202 | 6 97 74 231 280 Maximum Alert Level 2 | . . . 2 2 Low Security (%) 48 | 100 100 100 35 18 Level 1 43 | . . . 57 66 Level 2 7 | . . . 7 15 Level 3 . | . . . . . Level 4 . | . . . . . Level 5 . | . . . . . High Security . | . . . . . Max Security . | . . . . . Squads Dispatched 5 | . 2 . 3 . Investigation 3 | . 2 . 1 . Extermination . | . . . . . Reinforcement 2 | . . . 2 . Assault . | . . . . . Garrison . | . . . . . Intercept . | . . . . . Searches Triggered . | . . . . . Construction Impeded . | . . . . . Haulers Reinforced . | . . . . . Active Scanning Responses . | . . . . . Cargo Convoy Interrupts . | . . . . . Stealth | -11 -10 -10 -9 -9 --------- Run | Yrd Mat Min Mat Min Distress Signals . | . . . . . Communications Jammed . | . . . . . Distress Signals . | . . . . . Times Spotted 83 | . 9 . 35 39 Peak Tracking Total 9 | . 3 . 5 9 Tactical Retreats 3 | . . . 1 2 Traps | -11 -10 -10 -9 -9 ------- Run | Yrd Mat Min Mat Min Traps Triggered 1 | . 1 . . . Indirectly . | . . . . . Trap Hack Attempts . | . . . . . Triggered . | . . . . . Disarmed . | . . . . . Reprogrammed . | . . . . . Reused . | . . . . . Traps Extracted . | . . . . . Installed . | . . . . . Triggered . | . . . . . Machines | -11 -10 -10 -9 -9 ---------- Run | Yrd Mat Min Mat Min Machines Disabled 2 | . . . 2 . Max in Single Turn 1 | . . . 1 . Machines Repaired . | . . . . . Machines Dismantled . | . . . . . Machines Sabotaged . | . . . . . Overloaded Fab Kills . | . . . . . Hacking | -11 -10 -10 -9 -9 --------- Run | Yrd Mat Min Mat Min Machines Accessed 13 | . 5 . 8 . Terminals 11 | . 4 . 7 . Fabricators . | . . . . . Repair Stations . | . . . . . Recycling Units 2 | . 1 . 1 . Scanalyzers . | . . . . . Garrison Access . | . . . . . Total Hacks 52 | . 18 . 34 . Successful 29 | . 6 . 23 . Failed 23 | . 12 . 11 . Catastrophic 1 | . 1 . . . Database Lockouts . | . . . . . Manual 40 | . 15 . 25 . Terminals 50 | . 17 . 33 . Fabricators . | . . . . . Repair Stations . | . . . . . Recycling Units 2 | . 1 . 1 . Scanalyzers . | . . . . . Garrison Access . | . . . . . Terminal Hacks 20 | . 2 . 18 . Part Schematic 1 | . . . 1 . Robot Analysis 7 | . 1 . 6 . Prototype ID Bank 4 | . . . 4 . Branch Access Points 1 | . . . 1 . Terminal Index 1 | . . . 1 . Unreport Threat 3 | . . . 3 . Locate Traps 3 | . 1 . 2 . Fabricator Hacks . | . . . . . Repair Station Hacks . | . . . . . Recycling Unit Hacks . | . . . . . Scanalyzer . | . . . . . Garrison Access Hacks . | . . . . . Unauthorized Hacks 9 | . 4 . 5 . Terminals 7 | . 3 . 4 . Track 2 | . 1 . 1 . Botnet 3 | . 1 . 2 . Operators 2 | . 1 . 1 . Fabricators . | . . . . . Repair Stations . | . . . . . Recycling Units 2 | . 1 . 1 . Recyclers 1 | . 1 . . . Tunnel 1 | . . . 1 . Scanalyzers . | . . . . . Garrison Access . | . . . . . Data Cores Recovered . | . . . . . Used . | . . . . . Hacking Detections 12 | . 5 . 7 . Full Trace Events 3 | . 3 . . . Feedback Events 1 | . 1 . . . Corruption 1 | . 1 . . . Feedback Blocked . | . . . . . Robot Schematics Acquired . | . . . . . Robots Built . | . . . . . Authchips . | . . . . . Time . | . . . . . Total Robot Build Rating . | . . . . . Part Schematics Acquired 1 | . . . 1 . Parts Built . | . . . . . Authchips . | . . . . . Time . | . . . . . Total Part Build Rating . | . . . . . Parts Repaired . | . . . . . Time . | . . . . . Parts Recycled . | . . . . . Recycled Matter . | . . . . . Retrieved Matter . | . . . . . Retrieved Components . | . . . . . Parts Scanalyzed . | . . . . . Part Schematics Acquired . | . . . . . Parts Damaged . | . . . . . Bothacking | -11 -10 -10 -9 -9 ------------ Run | Yrd Mat Min Mat Min Used RIF Installer . | . . . . . Robots Hacked . | . . . . . Non-combat . | . . . . . Combat . | . . . . . Robot Hacks Applied . | . . . . . Relay Couplers Released . | . . . . . Fabnet Peak Effective % . | . . . . . Robots Rewired . | . . . . . Allies Hacked . | . . . . . Hacks Repelled . | . . . . . Allies | -11 -10 -10 -9 -9 -------- Run | Yrd Mat Min Mat Min Total Allies . | . . . . . Largest Group . | . . . . . Highest-Rated Group . | . . . . . Highest-Rated Ally . | . . . . . Total Orders . | . . . . . Ally Attacks . | . . . . . Total Damage . | . . . . . Kills . | . . . . . Allies Corrupted . | . . . . . Allies Melted . | . . . . . Intel | -11 -10 -10 -9 -9 ------- Run | Yrd Mat Min Mat Min Robot Analysis Total 7 | . 1 . 6 . Derelict Logs Recovered 3 | . . . . 3 Drone Launches . | . . . . . Drone Recoveries . | . . . . . Exploration | -11 -10 -10 -9 -9 ------------- Run | Yrd Mat Min Mat Min Turns Passed 1880 | 80 375 39 1004 382 Spaces Moved 1258 | 58 282 41 674 203 Core 11 | 11 . . . . Treads . | . . . . . Legs . | . . . . . Wheels 1247 | 47 282 41 674 203 Hover . | . . . . . Flight . | . . . . . Fastest Speed 50 | 50 80 95 90 105 Average Speed 98 | 74 84 95 103 107 Slowest Speed 130 | 80 95 95 115 130 Overloaded Moves . | . . . . . Propulsion Burnouts . | . . . . . Robots Hopped . | . . . . . Cave-ins Triggered . | . . . . . Exploration Rate (%) 42 | 3 64 15 68 60 Regions Visited 4 Branch Regions 2 Pre-discovered Areas 2 | . . . 1 1 Known Exits Taken 1 | . . . 1 . Unknown Exits Taken 3 | 1 1 1 . . Scrap Searched 2 | . . . . 2 Spaces Dug 15 | . 2 . . 13 Terrain Destroyed 209 | . 5 . 48 156 Melee . | . . . . . Projectile 5 | . 5 . . . AOE 204 | . . . 48 156 Terrain Rammed . | . . . . . Walls Destroyed . | . . . . . Machines Disabled . | . . . . . Actions | -11 -10 -10 -9 -9 --------- Run | Yrd Mat Min Mat Min Total 1610 | 80 346 40 853 291 Wait 19 | . 4 . 13 2 Move 1254 | 57 281 40 673 203 Hop . | . . . . . Pick Up 38 | 7 6 . 22 3 Fast Attach 14 | 6 . . 6 2 Attach 16 | 1 1 . 7 7 Detach 1 | . . . . 1 Swap 63 | 2 12 . 39 10 Drop 36 | 1 7 . 23 5 Fire 169 | 6 35 . 70 58 Melee . | . . . . . Ram . | . . . . . Kick . | . . . . . Crush . | . . . . . Escape Stasis . | . . . . . Rewire . | . . . . . Trap . | . . . . . Miscellaneous . | . . . . . Route ------- -11/Scrapyard -10/Materials (discovered 3 exits: *Mat x2 / [*Min]) -10/Mines -9/Materials (discovered 2 exits: [*Mat] / *Min) -9/Mines History --------- Turn | Location | Event 8 | -11/Scrapyard | Discovered new exit (range 16) 81 | -11/Scrapyard | Entered Materials 142 | -10/Materials | Discovered new exit (range 10) 340 | -10/Materials | Discovered new exit (range 9) 358 | -10/Materials | Build established: Mutant 394 | -10/Materials | Discovered new exit (range 16) 456 | -10/Materials | Entered Mines 487 | -10/Mines | Discovered new exit (range 9) 495 | -10/Mines | Entered Materials 495 | -9/Materials | Evolved 2 slots: Propulsion x1, Utility x1 762 | -9/Materials | Lost 4 parts (1p3n) 829 | -9/Materials | Discovered new exit (range 16) 896 | -9/Materials | Build established: Scavenger-Mutant 1271 | -9/Materials | Discovered new exit (range 6) 1408 | -9/Materials | Identified exit to Mines 1499 | -9/Materials | Entered Mines 1629 | -9/Mines | Learned 2 Materials zone layouts 1649 | -9/Mines | A Derelict revealed a hidden shortcut to a safe place 1826 | -9/Mines | Assembled infested the area 1827 | -9/Mines | Learned 2 Materials zone layouts 1853 | -9/Mines | Core integrity fell below 50% 1877 | -9/Mines | Core integrity fell below 20% 1881 | -9/Mines | Destroyed by D-53 Grenadier with Mini Grenade Launcher Last Messages --------------- 01846_ Rocket Launcher destroyed. 01846_ Acquired Com. Wheel. 01853_ as-48635 destroyed. 01857_ as-63657 destroyed. 01860_ Imp. Ion Engine destroyed. 01865_ System corrupted: Enh. Autogun jammed. 01865_ as-00091 destroyed. 01870_ Imp. Ion Engine destroyed. 01870_ C-30 ARC bursts open, deploying its payload. 01870_ D-53 Grenadier unfolds itself. 01870_ as-35558 destroyed. 01870_ as-63359 destroyed. 01871_ The unstable cave ceiling collapses. 01872_ Enh. Autogun destroyed. 01872_ Lgt. Treads destroyed. 01874_ Com. Wheel destroyed. 01876_ The unstable cave ceiling collapses. 01876_ K-01 Serf destroyed. 01877_ The unstable cave ceiling collapses. 01879_ Enh. Autogun destroyed. Map ----- +----------------------------------------------------+ | ??????## ##### # # # = ###### #### | | ????#??# ??#?# #????## #?## | | ??????# #??### # ##???### #?### | | ??????# ?????######## ##?##### ##??? | | ??????# #????????????#####??# #### | | ??????# ???????????????????# | | ??????# #????#???????????#??# | | ??????## #???????????????#??#?## ###### | | ???????###????????????? #?#??### ####????# | | ??????????????????????# ??????####???#??##? | | ?????????????????????## # #?????????????????? | | ???????????#?????????# ???????########### | | ?????????????????????? #?????## | | ??????????????????????? k ##?????# ######### | | ???????????????????????# =% #?????# ######### | | ???????????????????????# * #?##### ![ = | | ??????????????????????## #?# ######## | | ???????????????####?### #?# #####?????## | | ??????????????? ### ### #???????#?# | | ??????????????? ## #????#???# | | ???????????????# #??????#?## | | ????????????????# ####?????????### | | ??????????????????## dd%##???????????#??? | | ??????????????????# # #?#?????????????# | | ??????????????????# ##??????????????? | | ??????????????????# @ ##?????????????? | | ??????????????????# #?#?????? ????? | | ???????????????#??# ###?????????????? | | ?????????????????## #?????? ??????? | | ?????????????????# ###???????????? | | ???????????# # #???????????? | | ???????????# a ## #????? ?????? | | ???????????# #??#??????????? | | ???????????## # ????????????? | | ????????????## # ??????????? | | ?????????????## % ?????????? | | ??????????????## # ????????? | | ???????????????# # ???????? | | ??????????????# # a ## ???????? | | ?????????????? # ##?# ??????? | | ?????????????? ??# #??? ?? ??????? | | ?????????????????# ## ##???? ??????????? | | ??????????????????# ###??? ?? ###??????????? | | ?????????????????????????????? ##????????????? | | ????????????????????? ?????????##?????????????? | | ??????????????????????????????????????????????? | | ??????????????????????????????????????????????? | | ??????????????????????????????????????????????? | | ??????????????????????????????????????????????? | | ??????????????????????????????????????????????? | +----------------------------------------------------+ Best States ------------- Heat Dissipation 42 Energy Generation 12 Energy Capacity 265 Matter Stores 300 Matter Capacity 300 Sight Range 16 Terrain Scan Range 16 Terrain Scan Density 10 Armor Coverage 150 Evasion (%) 44 Recoil Reduction 2 Item Schematics ----------------- Sensor Array | -9/Materials | Hacked Robot Schematics ------------------ None Fabricated ------------ Nothing Alien Tech Used ----------------- None Achievements -------------- None Challenges ------------ None Game ------ Seed ParticleChargeCasing Manual? 0 Play Time 00:24:32 Cumulative 1032.6 hours Start 2024.02.18 @ 12:26:41 End 2024.02.18 @ 12:50:17 Sessions 1 Manual Loads 0 Difficulty Rogue Special Mode None Game No. 521 Rogue 394 Adventurer 125 Explorer 2 Win Type - Total 123 Types 97/9/8/3/3/0/0/2/1 Lore% 82 Gallery% 89 Achievement% 84 Wizard Run 0 Options --------- Layout 0 ASCII 0 Keyboard 1 Movement Numpad Keybinds 0 Fullscreen 1 Font 36/Terminus++ Map View 76x50 Zoom Use 0% Tactical HUD 1 Map Filters NONE Filters NONE Steam 1 RUN: 719b5c31-688b-4d11-bfe5-4cfca6410d3f